Cogmind - Beta 14 @@@ ROGUE MODE // 2024.08.08 @ 22:59:24 Player: Olafz Result: Self-destructed Performance ------------- Evolutions (4) 2000 Regions Visited (7) 1400 Robots Destroyed (0) 0 Value Destroyed (0) 0 Prototype IDs (4) 80 Alien Tech Used (0) 0 Bonus (770) 770 TOTAL SCORE: 4250 Bonus ------- Pacifist 470 Registered with UFD 300 Cogmind --------- Core Integrity 705/850 Matter 168/300 Energy 100/100 System Corruption 0% Temperature Cool (1) Movement Flying (40) Location -6/Lower Caves Parts ------- > --- POWER (1) -------- (None) > --- PROPULSION (4) --- Nuclear Pulse Thruster > --- UTILITY (8) ------ Advanced Signal Interpreter A0-MCA's Component Scanner > --- WEAPON (2) ------- Companion Sword > --- INVENTORY (5) ---- Power Amplifier Small Storage Unit Weight Redist. System Improved Trap Scanner Peak State ------------ > --- POWER ------------ (None) > --- PROPULSION ------- VTOL Module Cesium-ion Thruster Nuclear Pulse Thruster > --- UTILITY ---------- Improved Trap Scanner A0-MCA's Component Scanner > --- WEAPON ----------- Companion Sword > --- INVENTORY -------- Power Amplifier Small Storage Unit Weight Redist. System [Rating: 30] Favorites ----------- Power None Propulsion Cesium-ion Thruster Flight Unit Cesium-ion Thruster Utility A0-MCA's Component Scanner Device Weight Redist. System Processor A0-MCA's Component Scanner Weapon Companion Sword Slashing Weapon Companion Sword Build | -11 -10 -9 -9 -9 -9 -6 -6 ------- Run | Yrd Mat Mat Sto Rec Scr Fac Low Slots Evolved 8 | . . 2 . . . 6 . Power . | . . . . . . . . Propulsion 2 | . . . . . . 2 . Utility 6 | . . 2 . . . 4 . Weapon . | . . . . . . . . Parts Attached 9 | . 1 1 . . 4 3 . Power . | . . . . . . . . Engine . | . . . . . . . . Core . | . . . . . . . . Reactor . | . . . . . . . . Propulsion 3 | . . . . . 2 1 . Treads . | . . . . . . . . Leg . | . . . . . . . . Wheel . | . . . . . . . . Hover . | . . . . . . . . Flight 3 | . . . . . 2 1 . Utility 5 | . 1 1 . . 1 2 . Device 3 | . 1 1 . . . 1 . Storage . | . . . . . . . . Processor 2 | . . . . . 1 1 . Hackware . | . . . . . . . . Protection . | . . . . . . . . Artifact . | . . . . . . . . Weapon 1 | . . . . . 1 . . Energy Gun . | . . . . . . . . Energy Cannon . | . . . . . . . . Ballistic Gun . | . . . . . . . . Ballistic Cannon . | . . . . . . . . Launcher . | . . . . . . . . Special Weapon . | . . . . . . . . Impact Weapon . | . . . . . . . . Slashing Weapon 1 | . . . . . 1 . . Piercing Weapon . | . . . . . . . . Special Melee Weapon . | . . . . . . . . Unidentified Prototypes . | . . . . . . . . Parts Lost 3 | . . 1 . . . 2 . Power . | . . . . . . . . Propulsion 2 | . . . . . . 2 . Utility 1 | . . 1 . . . . . Weapon . | . . . . . . . . Highest Loss Streak 2 | . . 1 . . . 2 . To Critical Strikes . | . . . . . . . . Average Slot Usage (%) 21 | . 9 16 11 11 25 31 26 Flight 7 | . . . . . 14 13 6 Device 5 | . 9 16 11 11 . 3 . Processor 4 | . . . . . 6 6 13 Slashing Weapon 3 | . . . . . 4 6 6 Peak Build Rating 30 | . 1 3 2 2 20 30 26 Average Rating 12 | . . 2 2 1 11 25 26 On Entrance 6 | . . 1 2 2 . 20 26 Naked Turns 45 | . 12 . . 9 24 . . Heaviest Build 7 | . 1 1 . . 4 7 4 Greatest Support 15 | 3 3 3 3 3 9 15 6 Greatest Overweight (x) . | . . . . . . . . Average Overweight (x) . | . . . . . . . . Largest Inventory Capacity 5 | 5 5 5 5 5 5 5 5 Average Capacity 5 | 5 5 5 5 5 5 5 5 Most Carried 4 | . . . . 2 3 4 4 Average Carried 1 | . . . . . 2 3 4 Final Capacity 5 | 5 5 5 5 5 5 5 5 Final Carried 4 | . . . . 2 3 4 4 Class Distribution -------------------- 71% | Mutant 28% | Sprinter Dominant Class ---------------- Mutant | -10/Materials Mutant | -9/Materials Mutant | -9/Storage Mutant | -9/Recycling Sprinter | -9/Scraptown Sprinter | -6/Factory Mutant | -6/Lower Caves Resources | -11 -10 -9 -9 -9 -9 -6 -6 ----------- Run | Yrd Mat Mat Sto Rec Scr Fac Low Matter Collected 140 | 59 . . . . 81 . . Remotely . | . . . . . . . . Salvage Created . | . . . . . . . . Parts . | . . . . . . . . Haulers Intercepted . | . . . . . . . . Recyclers Shooed . | . . . . . . . . Parts Field Recycled . | . . . . . . . . Retrieved Matter . | . . . . . . . . Parts Self-Destructed . | . . . . . . . . Prevented 1 | . . . . . . . 1 Kills | -11 -10 -9 -9 -9 -9 -6 -6 ------- Run | Yrd Mat Mat Sto Rec Scr Fac Low Combat Hostiles Destroyed . | . . . . . . . . Classes Destroyed . | . . . . . . . . Best Kill Streak . | . . . . . . . . Combat Bots Only . | . . . . . . . . Max Kills in Single Turn . | . . . . . . . . Gunslinging . | . . . . . . . . Exploded . | . . . . . . . . Melee . | . . . . . . . . Uniques/NPCs Destroyed . | . . . . . . . . Combat | -11 -10 -9 -9 -9 -9 -6 -6 -------- Run | Yrd Mat Mat Sto Rec Scr Fac Low Hostile Shots Fired 109 | . 14 24 42 . . 19 10 Missed 49 | . 5 11 21 . . 8 4 Damage Taken 646 | . 75 155 181 . . 152 83 Core 503 | . 56 130 172 . . 88 57 Absorbed by Shields . | . . . . . . . . Core Remaining (%) 67 | 100 77 . . . 24 . . Volleys Fired . | . . . . . . . . Largest . | . . . . . . . . Hottest . | . . . . . . . . Shots Fired . | . . . . . . . . Gun . | . . . . . . . . Cannon . | . . . . . . . . Launcher . | . . . . . . . . Special . | . . . . . . . . Kinetic . | . . . . . . . . Thermal . | . . . . . . . . Explosive . | . . . . . . . . Electromagnetic . | . . . . . . . . Robot Hit Streak . | . . . . . . . . Robot Miss Streak . | . . . . . . . . Penetration Max . | . . . . . . . . Secondary Targets . | . . . . . . . . Shots Hit Robots . | . . . . . . . . Core Hits 1 | . . . 1 . . . . Critical Kills . | . . . . . . . . Critical Parts Destroyed . | . . . . . . . . Critical Strikes . | . . . . . . . . Melee Attacks . | . . . . . . . . Impact . | . . . . . . . . Slashing . | . . . . . . . . Piercing . | . . . . . . . . Sneak Attacks . | . . . . . . . . Combat Hostiles . | . . . . . . . . Follow-up Attacks . | . . . . . . . . Damage Inflicted 6 | . . . 6 . . . . Guns . | . . . . . . . . Cannons . | . . . . . . . . Explosions . | . . . . . . . . Melee . | . . . . . . . . Ramming 6 | . . . 6 . . . . Kinetic . | . . . . . . . . Thermal . | . . . . . . . . Explosive . | . . . . . . . . Electromagnetic . | . . . . . . . . Impact . | . . . . . . . . Slashing . | . . . . . . . . Piercing . | . . . . . . . . Highest Corruption . | . . . . . . . . Average Corruption . | . . . . . . . . Corruption Purged . | . . . . . . . . Corruption Blocked . | . . . . . . . . Overload Shots . | . . . . . . . . Overflow Damage . | . . . . . . . . Projectiles . | . . . . . . . . Explosions . | . . . . . . . . Melee . | . . . . . . . . Knockbacks . | . . . . . . . . Impact . | . . . . . . . . Kinetic . | . . . . . . . . Secondary . | . . . . . . . . Self-Inflicted Damage 3 | . . . 3 . . . . Shots . | . . . . . . . . Rammed 1 | . . . 1 . . . . Targets Rammed 1 | . . . 1 . . . . Kicked . | . . . . . . . . Crushed . | . . . . . . . . Highest Temperature . | . . . . . . . . Average Temperature . | . . . . . . . . Received Heat Transfer 96 | . . 78 18 . . . . Siege Activations . | . . . . . . . . Robots Corrupted . | . . . . . . . . Combat Hostiles . | . . . . . . . . Parts Fried . | . . . . . . . . Impact Corruptions . | . . . . . . . . Robots Melted . | . . . . . . . . Combat Hostiles . | . . . . . . . . Parts Melted . | . . . . . . . . Heat Transferred . | . . . . . . . . Parts Sabotaged . | . . . . . . . . Parts Stolen . | . . . . . . . . Parts Stripped . | . . . . . . . . Power Chain Reactions . | . . . . . . . . Alert | -11 -10 -9 -9 -9 -9 -6 -6 ------- Run | Yrd Mat Mat Sto Rec Scr Fac Low Peak Influence 138 | . . 115 138 53 . 105 . Initial 53 | . . . 48 53 . . . Average 38 | . . 30 92 53 . 24 . Maximum Alert Level . | . . . . . . . . Low Security (%) 100 | 100 100 100 100 100 . 100 . Level 1 . | . . . . . . . . Level 2 . | . . . . . . . . Level 3 . | . . . . . . . . Level 4 . | . . . . . . . . Level 5 . | . . . . . . . . High Security . | . . . . . . . . Max Security . | . . . . . . . . Squads Dispatched 1 | . . . . . . 1 . Investigation . | . . . . . . . . Extermination . | . . . . . . . . Reinforcement 1 | . . . . . . 1 . Assault . | . . . . . . . . Garrison . | . . . . . . . . Intercept . | . . . . . . . . Searches Triggered . | . . . . . . . . Construction Impeded . | . . . . . . . . Haulers Reinforced . | . . . . . . . . Active Scanning Responses . | . . . . . . . . Cargo Convoy Interrupts . | . . . . . . . . Stealth | -11 -10 -9 -9 -9 -9 -6 -6 --------- Run | Yrd Mat Mat Sto Rec Scr Fac Low Distress Signals 3 | . . 2 . . . 1 . Communications Jammed . | . . . . . . . . Distress Signals . | . . . . . . . . Times Spotted 40 | . 3 15 11 . . 8 3 Peak Tracking Total 20 | . 3 20 9 . . 7 3 Tactical Retreats 6 | . . 2 1 . . 2 1 Traps | -11 -10 -9 -9 -9 -9 -6 -6 ------- Run | Yrd Mat Mat Sto Rec Scr Fac Low Traps Triggered . | . . . . . . . . Indirectly . | . . . . . . . . Trap Hack Attempts . | . . . . . . . . Triggered . | . . . . . . . . Disarmed . | . . . . . . . . Reprogrammed . | . . . . . . . . Reused . | . . . . . . . . Traps Extracted . | . . . . . . . . Installed . | . . . . . . . . Triggered 1 | . . . . . . . 1 Machines | -11 -10 -9 -9 -9 -9 -6 -6 ---------- Run | Yrd Mat Mat Sto Rec Scr Fac Low Machines Disabled . | . . . . . . . . Max in Single Turn . | . . . . . . . . Machines Repaired . | . . . . . . . . Machines Dismantled . | . . . . . . . . Machines Sabotaged . | . . . . . . . . Overloaded Fab Kills . | . . . . . . . . Hacking | -11 -10 -9 -9 -9 -9 -6 -6 --------- Run | Yrd Mat Mat Sto Rec Scr Fac Low Machines Accessed 3 | . . 1 . . 1 . 1 Terminals 1 | . . 1 . . . . . Fabricators . | . . . . . . . . Repair Stations . | . . . . . . . . Recycling Units . | . . . . . . . . Scanalyzers . | . . . . . . . . Garrison Access . | . . . . . . . . Total Hacks 8 | . . 5 . . 2 . 1 Successful 4 | . . 1 . . 2 . 1 Failed 4 | . . 4 . . . . . Catastrophic . | . . . . . . . . Database Lockouts . | . . . . . . . . Manual 6 | . . 5 1 . . . . Terminals 5 | . . 5 . . . . . Fabricators . | . . . . . . . . Repair Stations . | . . . . . . . . Recycling Units . | . . . . . . . . Scanalyzers . | . . . . . . . . Garrison Access . | . . . . . . . . Terminal Hacks 3 | . . . . . 2 . 1 Record 1 | . . . . . 1 . . Open Door 2 | . . . . . 1 . 1 Fabricator Hacks . | . . . . . . . . Repair Station Hacks . | . . . . . . . . Recycling Unit Hacks . | . . . . . . . . Scanalyzer . | . . . . . . . . Garrison Access Hacks . | . . . . . . . . Unauthorized Hacks 1 | . . 1 . . . . . Terminals 1 | . . 1 . . . . . Botnet 1 | . . 1 . . . . . Fabricators . | . . . . . . . . Repair Stations . | . . . . . . . . Recycling Units . | . . . . . . . . Scanalyzers . | . . . . . . . . Garrison Access . | . . . . . . . . Data Cores Recovered . | . . . . . . . . Used . | . . . . . . . . Hacking Detections 1 | . . 1 . . . . . Full Trace Events . | . . . . . . . . Feedback Events . | . . . . . . . . Feedback Blocked . | . . . . . . . . Robot Schematics Acquired . | . . . . . . . . Robots Built . | . . . . . . . . Authchips . | . . . . . . . . Time . | . . . . . . . . Total Robot Build Rating . | . . . . . . . . Part Schematics Acquired . | . . . . . . . . Parts Built . | . . . . . . . . Authchips . | . . . . . . . . Time . | . . . . . . . . Total Part Build Rating . | . . . . . . . . Parts Repaired . | . . . . . . . . Time . | . . . . . . . . Parts Recycled . | . . . . . . . . Recycled Matter . | . . . . . . . . Retrieved Matter . | . . . . . . . . Retrieved Components . | . . . . . . . . Parts Scanalyzed . | . . . . . . . . Part Schematics Acquired . | . . . . . . . . Parts Damaged . | . . . . . . . . Bothacking | -11 -10 -9 -9 -9 -9 -6 -6 ------------ Run | Yrd Mat Mat Sto Rec Scr Fac Low Used RIF Installer . | . . . . . . . . Robots Hacked . | . . . . . . . . Non-combat . | . . . . . . . . Combat . | . . . . . . . . Robot Hacks Applied . | . . . . . . . . Relay Couplers Released . | . . . . . . . . Fabnet Peak Effective % . | . . . . . . . . Robots Rewired . | . . . . . . . . Allies Hacked . | . . . . . . . . Hacks Repelled . | . . . . . . . . Allies | -11 -10 -9 -9 -9 -9 -6 -6 -------- Run | Yrd Mat Mat Sto Rec Scr Fac Low Total Allies . | . . . . . . . . Largest Group . | . . . . . . . . Highest-Rated Group . | . . . . . . . . Highest-Rated Ally . | . . . . . . . . Total Orders . | . . . . . . . . Ally Attacks . | . . . . . . . . Total Damage . | . . . . . . . . Kills . | . . . . . . . . Allies Corrupted . | . . . . . . . . Allies Melted . | . . . . . . . . Intel | -11 -10 -9 -9 -9 -9 -6 -6 ------- Run | Yrd Mat Mat Sto Rec Scr Fac Low Robot Analysis Total . | . . . . . . . . Derelict Logs Recovered . | . . . . . . . . Drone Launches . | . . . . . . . . Drone Recoveries . | . . . . . . . . Exploration | -11 -10 -9 -9 -9 -9 -6 -6 ------------- Run | Yrd Mat Mat Sto Rec Scr Fac Low Turns Passed 606 | 9 32 84 51 72 164 114 80 Spaces Moved 1444 | 18 61 165 100 140 445 316 199 Core 530 | 18 61 165 100 140 46 . . Treads . | . . . . . . . . Legs . | . . . . . . . . Wheels . | . . . . . . . . Hover . | . . . . . . . . Flight 914 | . . . . . 399 316 199 Fastest Speed 30 | 50 50 50 50 50 32 30 40 Average Speed 40 | 50 50 50 50 50 34 33 40 Slowest Speed 50 | 50 50 50 50 50 50 40 40 Overloaded Moves . | . . . . . . . . Propulsion Burnouts . | . . . . . . . . Robots Hopped 1 | . . . . . . 1 . Cave-ins Triggered . | . . . . . . . . Exploration Rate (%) 27 | 3 18 23 32 51 44 11 37 Regions Visited 7 Branch Regions 4 Pre-discovered Areas . | . . . . . . . . Known Exits Taken 1 | . . . . . . 1 . Unknown Exits Taken 6 | 1 1 1 1 1 1 . . Scrap Searched 2 | . . . . . 2 . . Spaces Dug . | . . . . . . . . Terrain Destroyed . | . . . . . . . . Melee . | . . . . . . . . Projectile . | . . . . . . . . AOE . | . . . . . . . . Terrain Rammed . | . . . . . . . . Walls Destroyed . | . . . . . . . . Machines Disabled . | . . . . . . . . Actions | -11 -10 -9 -9 -9 -9 -6 -6 --------- Run | Yrd Mat Mat Sto Rec Scr Fac Low Total 1454 | 17 61 165 100 141 451 320 199 Wait 4 | . . . . . 2 2 . Move 1435 | 17 60 164 99 139 444 313 199 Hop 1 | . . . . . . 1 . Pick Up 2 | . . . . 1 1 . . Fast Attach 9 | . 1 1 . . 4 3 . Attach . | . . . . . . . . Detach 2 | . . . . 1 . 1 . Swap . | . . . . . . . . Drop . | . . . . . . . . Fire . | . . . . . . . . Melee . | . . . . . . . . Ram 1 | . . . 1 . . . . Kick . | . . . . . . . . Crush . | . . . . . . . . Escape Stasis . | . . . . . . . . Rewire . | . . . . . . . . Trap . | . . . . . . . . Miscellaneous . | . . . . . . . . Route ------- -11/Scrapyard -10/Materials (discovered 2 exits: *Mat / [*Min]) -9/Materials -9/Storage -9/Recycling (discovered 2 exits: [*Fac] / *Scr) -9/Scraptown -6/Factory -6/Lower Caves History --------- Turn | Location | Event 3 | -11/Scrapyard | Discovered new exit (range 15) 10 | -11/Scrapyard | Entered Materials 15 | -10/Materials | Discovered new exit (range 16) 35 | -10/Materials | Discovered new exit (range 15) 42 | -10/Materials | Entered another Materials area 42 | -9/Materials | Evolved 2 slots: Utility x2 123 | -9/Materials | Discovered new exit (range 7) 126 | -9/Materials | Entered Storage 146 | -9/Storage | Core integrity fell below 50% 176 | -9/Storage | Used back door to open Recycling access 176 | -9/Storage | Discovered new exit (range 4) 177 | -9/Storage | Entered Recycling 216 | -9/Recycling | Discovered new exit (range 12) 237 | -9/Recycling | Scanned before Scraplab entrance 244 | -9/Recycling | Entered Scraplab 248 | -9/Recycling | Discovered new exit (range 2) 249 | -9/Recycling | Entered Scraptown 293 | -9/Scraptown | Visited UFD Registry 293 | -9/Scraptown | Registered with UFD as "Ionframe" 299 | -9/Scraptown | Visited Scrapoid Research Area 304 | -9/Scraptown | Visited Chapter 10 309 | -9/Scraptown | Visited A0-MCA Data Center 311 | -9/Scraptown | Given a B- rating by A0-MCA 313 | -9/Scraptown | Build established: Mutant 314 | -9/Scraptown | Found A0-MCA's Component Scanner 340 | -9/Scraptown | Visited Sword Containment 351 | -9/Scraptown | Visited Supply Room 360 | -9/Scraptown | Visited Analyses Database 363 | -9/Scraptown | Visited Research Penetration Think Tank 370 | -9/Scraptown | Visited Abandonware Association 376 | -9/Scraptown | Visited LU-1G1's Boring Crew 381 | -9/Scraptown | Visited Derelict Rescue Squad 412 | -9/Scraptown | Discovered new exit (range 5) 413 | -9/Scraptown | Entered Factory 413 | -6/Factory | Evolved 6 slots: Propulsion x2, Utility x4 524 | -6/Factory | Discovered new exit (range 8) 527 | -6/Factory | Identified exit to Lower Caves 527 | -6/Factory | Entered Lower Caves 553 | -6/Lower Caves | Encountered a Warlord checkpoint 607 | -6/Lower Caves | Self-destructed Last Messages --------------- Component scanned: Active Sensor Suite [H-61 Shepherd]. K-01 Serf cleans the Nuclear Reactor. Slug penetrates Repair Station. W-25 Informer sends out distress signal. K-01 Serf cleans the Subcomponent Replicator. Acquired Adv. Signal Interpreter. K-01 Serf cleans the Subcomponent Replicator. EXIT=FOUND EXIT=IDENTIFIED: LOWER CAVES LOCATION=LOWER CAVES GOAL=ESCAPE M-22 Extractor fails to extract Fire Trap. M-22 Extractor reprogrammed Fire Trap. M-22 Extractor extracts Fire Trap. OS-WTR(M): "Estimated chance of a MAIN.C patrol making it through here: 0%. Unless they've got a Behemoth in tow, in which case it's probably closer to 100%." Connecting with WAR.Sys... >>Open Door Sealed Heavy Doors opened. Map ----- +----------------------------------------------------+ | | | | | | | ?????????????????????????????????????????????????? | | ?????????????????????????????????????????????????? | | ?????????????????????????????????????????????????? | | ?????????????????????????????????????????????????? | | ?????????????????????????????????????????????????? | | ?????????????????????????????????????????????????? | | ?????????????????????????????????????????????????? | | ?????????????????????????????????????????????????? | | ?????????????????????????????????????????????????? | | ?????????????????????????????????????????????????? | | ?????????????????????????????????????????????????? | | ?????????????????????????????????????????????????? | | ?????????????????????????????????????????????????? | | ?????????????????????????????????????????????????? | | ?????????????????????????????????????????????###?? | | ???????????????????????########???############ ##? | | ???????????????????????# ##?## #? | | ???????????????????????# ### #? | | ???????????????????????# ### ### ## | | ???????????????????????## ### #?#### # | | ????????????????????????# ##?# ####?# | | ???????????????????????## #??# ### | | ???????????????????????# @ #?## ## | | ??????????????????????## #### | | ??????????????????????# # | | ??????????????????????# ####### | | ??????????????????????# ###???""## ## | | ??????????????????????# ##???? ""# ### | | ??????????????????????# ##????? "## #?## | | ??????????????????????# #??### ""# #??# | | ??????????????????????# ####X# "# #### | | ??????????????????????# "# # | | ??????????????????????# ###### "# | | ????????????????????### #????? ""# ##### | | ????????????????????# #?????? ""## ######???? | | ????????????????????# #?????"""## ##????????? | | ????????????????????# ######### ##?????????? | | ????????????????????### #??????????? | | ??????????????????????## #??????????? | | ???????????????????????######### ##??????????? | | ????????????????????????# ##### ##??????????? | | ???????????????????????## ## ### ##?????? | | ???????????????????##### ?## #?????? | | ??????????????????## ?## ##?????? | | ?????????????????## ### ###??????? | | ????????????????## ## #????????? | | ????????????????# #????????? | +----------------------------------------------------+ Best States ------------- Heat Dissipation 37 Energy Generation 5 Energy Capacity 100 Matter Stores 198 Matter Capacity 300 Sight Range 16 Terrain Scan Density 10 Evasion (%) 64 Item Schematics ----------------- None Robot Schematics ------------------ None Fabricated ------------ Nothing Alien Tech Used ----------------- None Achievements -------------- None Challenges ------------ None Game ------ Seed PoweredSapperCompressor Manual? 0 Play Time 00:12:25 Cumulative 182.0 hours Start 2024.08.08 @ 22:47:13 End 2024.08.08 @ 22:59:24 Sessions 1 Manual Loads 0 Difficulty Rogue Special Mode None Game No. 297 Rogue 295 Adventurer 2 Explorer 0 Win Type - Total 6 Types 5/0/0/1/0/0/0/0/0 Lore% 69 Gallery% 62 Achievement% 53 Wizard Run 0 Options --------- Layout 0 ASCII 0 Keyboard 1 Movement Numpad Keybinds 1 Fullscreen 2 Font 18/SmallcapsGlow Map View 76x50 Zoom Use 0% Tactical HUD 1 Map Filters NONE Filters NONE Steam 1 RUN: 28e1fb93-6741-48b9-a792-133a91541af5